Body Name,Body,Service Division,Expense Type,Date Paid,Transaction Ref,Invoice Amount,Supplier Name
South Holland District Council,http://statistics.data.gov.uk/id/local-authority/32UF,Finance,Business Rates - Share of Income Central Government,01/03/2024,30043078,"4,511,410.08 ",Lincolnshire County Council (CHAPS ONLY)
South Holland District Council,http://statistics.data.gov.uk/id/local-authority/32UF,Finance,Business Rates - Share of Income Lincolnshire County Council,01/03/2024,30043078,"263,774.10 ",Lincolnshire County Council (CHAPS ONLY)
South Holland District Council,http://statistics.data.gov.uk/id/local-authority/32UF,Finance,Council Tax Precept - Lincolnshire Police,01/03/2024,30043079,"873,801.95 ",Local Police Authority Fund Account
South Holland District Council,http://statistics.data.gov.uk/id/local-authority/32UF,AD Housing HRA,Roof Repairs,04/03/2024,30042628,"1,020.00 ",Kev Forman Roofing Ltd DO NOT USE
South Holland District Council,http://statistics.data.gov.uk/id/local-authority/32UF,Finance,Other Miscellaneous Expenses,04/03/2024,30043335,"20,508.38 ",Lloyds TSB
South Holland District Council,http://statistics.data.gov.uk/id/local-authority/32UF,AD Housing HRA,Works to Buildings (Main Contractor),05/03/2024,30041872,"4,865.38 ",McIntyre Compliance Services
South Holland District Council,http://statistics.data.gov.uk/id/local-authority/32UF,AD Housing HRA,Works to Buildings (Main Contractor),05/03/2024,30041961,"2,105.00 ",C G Godfrey Ltd
South Holland District Council,http://statistics.data.gov.uk/id/local-authority/32UF,AD Housing HRA,Works to Buildings (Main Contractor),05/03/2024,30042205,"8,772.41 ",McIntyre Compliance Services
South Holland District Council,http://statistics.data.gov.uk/id/local-authority/32UF,Asset & Property,Agency Staff,05/03/2024,30042261,"1,139.15 ",Integrity Plus Ltd
South Holland District Council,http://statistics.data.gov.uk/id/local-authority/32UF,Asset & Property,Agency Staff,05/03/2024,30042263,"2,193.28 ",Integrity Plus Ltd
South Holland District Council,http://statistics.data.gov.uk/id/local-authority/32UF,Asset & Property,Buildings Maintenance - Programmed,05/03/2024,30042425,"11,777.00 ",LJ Landscapes Ltd
South Holland District Council,http://statistics.data.gov.uk/id/local-authority/32UF,Asset & Property,Buildings Maintenance - Responsive,05/03/2024,30042338,650.00 ,LJ Landscapes Ltd
South Holland District Council,http://statistics.data.gov.uk/id/local-authority/32UF,Economic Development,Professional and Contractors Fees,05/03/2024,30042284,"4,463.80 ",KKMC Ltd
South Holland District Council,http://statistics.data.gov.uk/id/local-authority/32UF,Economic Development,Professional and Contractors Fees,05/03/2024,30042424,571.44 ,SkillsReach Ltd
South Holland District Council,http://statistics.data.gov.uk/id/local-authority/32UF,Economic Development,Professional and Contractors Fees,05/03/2024,30042441,"9,216.55 ",TRC Lincs Ltd
South Holland District Council,http://statistics.data.gov.uk/id/local-authority/32UF,Environmental Services,Agency Staff,05/03/2024,30042262,"1,058.40 ",Integrity Plus Ltd
South Holland District Council,http://statistics.data.gov.uk/id/local-authority/32UF,Environmental Services,Agency Staff,05/03/2024,30042310,"4,196.86 ",Integrity Plus Ltd
South Holland District Council,http://statistics.data.gov.uk/id/local-authority/32UF,Environmental Services,Agency Staff,05/03/2024,30042394,"1,449.66 ",Quality Service Recruitment Ltd
South Holland District Council,http://statistics.data.gov.uk/id/local-authority/32UF,Environmental Services,Agency Staff,05/03/2024,30042409,"1,165.00 ",Integrity Plus Ltd
South Holland District Council,http://statistics.data.gov.uk/id/local-authority/32UF,Environmental Services,Grounds Maintenance Contract (External),05/03/2024,30042203,"2,400.00 ",Greenscape Tree Safe Ltd
South Holland District Council,http://statistics.data.gov.uk/id/local-authority/32UF,Head of ICT and Digital,Computer Software Licence Costs,05/03/2024,30042333,"20,248.27 ",East Lindsey District Council
South Holland District Council,http://statistics.data.gov.uk/id/local-authority/32UF,Head of ICT and Digital,Telephone and Mobiles,05/03/2024,30042365,"2,660.68 ",British Telecom Corporate Plc
South Holland District Council,http://statistics.data.gov.uk/id/local-authority/32UF,AD Housing,Other Miscellaneous Expenses,07/03/2024,30042540,"35,332.60 ",Broadgate Builders (Spalding) Ltd
South Holland District Council,http://statistics.data.gov.uk/id/local-authority/32UF,AD Housing HRA,Agency Staff,07/03/2024,30042030,"1,277.50 ",�Personal Information Redacted�
South Holland District Council,http://statistics.data.gov.uk/id/local-authority/32UF,AD Housing HRA,Agency Staff,07/03/2024,30042204,"1,072.80 ",�Personal Information Redacted�
South Holland District Council,http://statistics.data.gov.uk/id/local-authority/32UF,AD Housing HRA,Buildings Maintenance - Responsive,07/03/2024,30041930,"1,551.00 ",C G Godfrey Ltd
South Holland District Council,http://statistics.data.gov.uk/id/local-authority/32UF,AD Housing HRA,Buildings Maintenance - Responsive,07/03/2024,30041950,"1,864.65 ",C G Godfrey Ltd
South Holland District Council,http://statistics.data.gov.uk/id/local-authority/32UF,AD Housing HRA,Buildings Maintenance - Responsive,07/03/2024,30041951,"1,153.02 ",C G Godfrey Ltd
South Holland District Council,http://statistics.data.gov.uk/id/local-authority/32UF,AD Housing HRA,Buildings Maintenance - Responsive,07/03/2024,30041952,795.83 ,C G Godfrey Ltd
South Holland District Council,http://statistics.data.gov.uk/id/local-authority/32UF,AD Housing HRA,Buildings Maintenance - Responsive,07/03/2024,30041956,"2,378.50 ",C G Godfrey Ltd
South Holland District Council,http://statistics.data.gov.uk/id/local-authority/32UF,AD Housing HRA,Buildings Maintenance - Responsive,07/03/2024,30042193,"1,250.00 ",Boors Ltd
South Holland District Council,http://statistics.data.gov.uk/id/local-authority/32UF,AD Housing HRA,Buildings Maintenance - Responsive,07/03/2024,30042554,"1,769.16 ",GBSG Ltd
South Holland District Council,http://statistics.data.gov.uk/id/local-authority/32UF,AD Housing HRA,Materials and Consumables,07/03/2024,30042036,"2,021.97 ",Howdens Joinery Co. (Acc 1000118018)
South Holland District Council,http://statistics.data.gov.uk/id/local-authority/32UF,AD Housing HRA,Materials and Consumables,07/03/2024,30042087,900.02 ,EPH Supplies Wholesale Ltd
South Holland District Council,http://statistics.data.gov.uk/id/local-authority/32UF,AD Housing HRA,Professional and Contractors Fees,07/03/2024,30042257,878.00 ,Lakeside Water & Building Services Ltd
South Holland District Council,http://statistics.data.gov.uk/id/local-authority/32UF,AD Housing HRA,Professional and Contractors Fees,07/03/2024,30042569,"16,000.00 ",South Lincs Surveyors
South Holland District Council,http://statistics.data.gov.uk/id/local-authority/32UF,AD Housing HRA,Professional and Contractors Fees,07/03/2024,30042585,605.00 ,Eve Alexander Ltd
South Holland District Council,http://statistics.data.gov.uk/id/local-authority/32UF,AD Strategic Growth and Development,Grants and Contributions to Outside Bodies - No Service Received,07/03/2024,30042121,"10,775.00 ",Michael Page Internat Recruitment Ltd
South Holland District Council,http://statistics.data.gov.uk/id/local-authority/32UF,AD Strategic Growth and Development,Grants and Contributions to Outside Bodies - No Service Received,07/03/2024,30042575,"8,400.00 ",Dejex Supplies Ltd
South Holland District Council,http://statistics.data.gov.uk/id/local-authority/32UF,AD Strategic Growth and Development,Professional and Contractors Fees,07/03/2024,30041253,"3,700.00 ",Hornbeck Limited t/a Landmark
South Holland District Council,http://statistics.data.gov.uk/id/local-authority/32UF,AD Strategic Growth and Development,Professional Fees,07/03/2024,30042531,660.00 ,Connells Limited
South Holland District Council,http://statistics.data.gov.uk/id/local-authority/32UF,AD Wellbeing and Community Leadership,Grants and Contributions to Outside Bodies - No Service Received,07/03/2024,30042444,"1,584.00 ",Property Panda Lettings Ltd
South Holland District Council,http://statistics.data.gov.uk/id/local-authority/32UF,Asset & Property,Buildings Maintenance - Responsive,07/03/2024,30042256,611.20 ,Lakeside Water & Building Services Ltd
South Holland District Council,http://statistics.data.gov.uk/id/local-authority/32UF,Asset & Property,Electricity,07/03/2024,30042581,"1,436.51 ",British Gas Business
South Holland District Council,http://statistics.data.gov.uk/id/local-authority/32UF,Asset & Property,Furniture and Equipment,07/03/2024,30042592,"7,332.00 ",e.on Energy Solutions Ltd (Highway Lighting)
South Holland District Council,http://statistics.data.gov.uk/id/local-authority/32UF,Democratic Services - Legal,Legal Fees,07/03/2024,30042253,"4,420.24 ",Lincolnshire County Council
South Holland District Council,http://statistics.data.gov.uk/id/local-authority/32UF,Democratic Services - Legal,Legal Fees,07/03/2024,30042254,"6,808.72 ",Lincolnshire County Council
South Holland District Council,http://statistics.data.gov.uk/id/local-authority/32UF,Economic Development,Professional and Contractors Fees,07/03/2024,30042497,"1,560.75 ",Cubet Ltd
South Holland District Council,http://statistics.data.gov.uk/id/local-authority/32UF,Economic Development,Professional and Contractors Fees,07/03/2024,30042523,"3,782.50 ",Client Marketing Ltd
South Holland District Council,http://statistics.data.gov.uk/id/local-authority/32UF,Environmental Services,Workshop Parts,07/03/2024,30042528,"1,064.30 ",EMS-FP and S Ltd
South Holland District Council,http://statistics.data.gov.uk/id/local-authority/32UF,Planning,Agency - Vacant Post Cover,07/03/2024,30042389,"14,500.00 ",Mark Simmonds Planning Services Limited
South Holland District Council,http://statistics.data.gov.uk/id/local-authority/32UF,South Holland Balance Sheet,ST Debtors HB Overpayments Control Account,07/03/2024,30042570,609.00 ,�Personal Information Redacted�
South Holland District Council,http://statistics.data.gov.uk/id/local-authority/32UF,AD Housing,Grants and Contributions to Outside Bodies - No Service Received,12/03/2024,30042578,"6,025.00 ",Obam Domestic Lift Services Ltd
South Holland District Council,http://statistics.data.gov.uk/id/local-authority/32UF,AD Housing,Grants and Contributions to Outside Bodies - No Service Received,12/03/2024,30042618,"21,966.39 ",Princebuild Ltd
South Holland District Council,http://statistics.data.gov.uk/id/local-authority/32UF,AD Housing HRA,Agency Staff,12/03/2024,30042231,"1,102.60 ",�Personal Information Redacted�
South Holland District Council,http://statistics.data.gov.uk/id/local-authority/32UF,AD Housing HRA,Agency Staff,12/03/2024,30042260,"1,295.00 ",�Personal Information Redacted�
South Holland District Council,http://statistics.data.gov.uk/id/local-authority/32UF,AD Housing HRA,Agency Staff,12/03/2024,30042309,"1,398.68 ",Integrity Plus Ltd
South Holland District Council,http://statistics.data.gov.uk/id/local-authority/32UF,AD Housing HRA,Agency Staff,12/03/2024,30042534,"1,102.60 ",�Personal Information Redacted�
South Holland District Council,http://statistics.data.gov.uk/id/local-authority/32UF,AD Housing HRA,Agency Staff,12/03/2024,30042545,894.00 ,�Personal Information Redacted�
South Holland District Council,http://statistics.data.gov.uk/id/local-authority/32UF,AD Housing HRA,Buildings Maintenance - Responsive,12/03/2024,30042421,"4,113.00 ",C G Godfrey Ltd
South Holland District Council,http://statistics.data.gov.uk/id/local-authority/32UF,AD Housing HRA,Buildings Maintenance - Responsive,12/03/2024,30042473,933.58 ,C G Godfrey Ltd
South Holland District Council,http://statistics.data.gov.uk/id/local-authority/32UF,AD Housing HRA,Buildings Maintenance - Responsive,12/03/2024,30042485,765.00 ,Boors Ltd
South Holland District Council,http://statistics.data.gov.uk/id/local-authority/32UF,AD Housing HRA,Buildings Maintenance - Responsive,12/03/2024,30042487,"1,895.00 ",Boors Ltd
South Holland District Council,http://statistics.data.gov.uk/id/local-authority/32UF,AD Housing HRA,Buildings Maintenance - Responsive,12/03/2024,30042489,790.00 ,Boors Ltd
South Holland District Council,http://statistics.data.gov.uk/id/local-authority/32UF,AD Housing HRA,Fuel and Oil,12/03/2024,30042646,857.22 ,C H Jones Ltd
South Holland District Council,http://statistics.data.gov.uk/id/local-authority/32UF,AD Housing HRA,Materials and Consumables,12/03/2024,30042428,435.60 ,EPH Supplies Wholesale Ltd
South Holland District Council,http://statistics.data.gov.uk/id/local-authority/32UF,AD Housing HRA,Materials and Consumables,12/03/2024,30042467,602.88 ,EPH Supplies Wholesale Ltd
South Holland District Council,http://statistics.data.gov.uk/id/local-authority/32UF,AD Housing HRA,Purchase of Hardware,12/03/2024,30042364,"2,528.90 ",Public Sector Partnership Services Ltd
South Holland District Council,http://statistics.data.gov.uk/id/local-authority/32UF,AD Housing HRA,Void Decoration,12/03/2024,30042491,"2,650.00 ",Boors Ltd
South Holland District Council,http://statistics.data.gov.uk/id/local-authority/32UF,AD Housing HRA,Void Repairs,12/03/2024,30042191,"19,735.00 ",Boors Ltd
South Holland District Council,http://statistics.data.gov.uk/id/local-authority/32UF,AD Housing HRA,Void Repairs,12/03/2024,30042192,"22,900.00 ",Boors Ltd
South Holland District Council,http://statistics.data.gov.uk/id/local-authority/32UF,AD Housing HRA,Void Repairs,12/03/2024,30042494,"3,350.00 ",Boors Ltd
South Holland District Council,http://statistics.data.gov.uk/id/local-authority/32UF,AD Housing HRA,Void Repairs,12/03/2024,30042617,"3,950.00 ",Boors Ltd
South Holland District Council,http://statistics.data.gov.uk/id/local-authority/32UF,AD Housing HRA,Works to Buildings (Main Contractor),12/03/2024,30042476,"2,357.68 ",C G Godfrey Ltd
South Holland District Council,http://statistics.data.gov.uk/id/local-authority/32UF,AD Housing HRA,Works to Buildings (Main Contractor),12/03/2024,30042619,"25,953.32 ",D Brown Building Contractors Ltd
South Holland District Council,http://statistics.data.gov.uk/id/local-authority/32UF,AD Neighbourhoods,"Purchase of Plant, Machinery and Equipment",12/03/2024,30042679,"56,922.00 ",A and C Weber UK Ltd
South Holland District Council,http://statistics.data.gov.uk/id/local-authority/32UF,AD Strategic Growth and Development,Grants and Contributions to Outside Bodies - No Service Received,12/03/2024,30042461,"207,390.00 ",Lincolnshire Community Foundation
South Holland District Council,http://statistics.data.gov.uk/id/local-authority/32UF,AD Wellbeing and Community Leadership,Grants and Contributions to Outside Bodies - No Service Received,12/03/2024,30042578,"12,050.00 ",Obam Domestic Lift Services Ltd
South Holland District Council,http://statistics.data.gov.uk/id/local-authority/32UF,AD Wellbeing and Community Leadership,Grants and Contributions to Outside Bodies - No Service Received,12/03/2024,30042618,"43,932.78 ",Princebuild Ltd
South Holland District Council,http://statistics.data.gov.uk/id/local-authority/32UF,AD Wellbeing and Community Leadership,Grants and Contributions to Outside Bodies - No Service Received,12/03/2024,30042828,"1,040.00 ",Jigsaw Lettings
South Holland District Council,http://statistics.data.gov.uk/id/local-authority/32UF,Asset & Property,Agency Staff,12/03/2024,30042683,"1,259.07 ",Integrity Plus Ltd
South Holland District Council,http://statistics.data.gov.uk/id/local-authority/32UF,Asset & Property,Agency Staff,12/03/2024,30042684,"2,114.07 ",Integrity Plus Ltd
South Holland District Council,http://statistics.data.gov.uk/id/local-authority/32UF,Asset & Property,Buildings Maintenance - Programmed,12/03/2024,30042661,900.00 ,Drains R Us (Eastern) Ltd
South Holland District Council,http://statistics.data.gov.uk/id/local-authority/32UF,Asset & Property,Buildings Maintenance - Programmed,12/03/2024,30042702,"1,800.00 ",LJ Landscapes Ltd
South Holland District Council,http://statistics.data.gov.uk/id/local-authority/32UF,Asset & Property,Fuel and Oil,12/03/2024,30042646,167.96 ,C H Jones Ltd
South Holland District Council,http://statistics.data.gov.uk/id/local-authority/32UF,Asset & Property,Works to Buildings (Main Contractor),12/03/2024,30042244,550.00 ,National Road Marking
South Holland District Council,http://statistics.data.gov.uk/id/local-authority/32UF,Asset & Property,Works to Buildings (Main Contractor),12/03/2024,30042757,"25,000.00 ",Warics Ltd
South Holland District Council,http://statistics.data.gov.uk/id/local-authority/32UF,Asset & Property,Works to Buildings (Main Contractor),12/03/2024,30042819,"2,919.00 ",Warics Ltd
South Holland District Council,http://statistics.data.gov.uk/id/local-authority/32UF,Capital - Strategic Finance & Compliance,Works to Buildings (Main Contractor),12/03/2024,30042244,550.00 ,National Road Marking
South Holland District Council,http://statistics.data.gov.uk/id/local-authority/32UF,Capital - Strategic Finance & Compliance,Works to Buildings (Main Contractor),12/03/2024,30042757,"25,000.00 ",Warics Ltd
South Holland District Council,http://statistics.data.gov.uk/id/local-authority/32UF,Capital - Strategic Finance & Compliance,Works to Buildings (Main Contractor),12/03/2024,30042819,"2,919.00 ",Warics Ltd
South Holland District Council,http://statistics.data.gov.uk/id/local-authority/32UF,Economic Development,Professional and Contractors Fees,12/03/2024,30042670,"10,511.25 ",Kudos Project Management
South Holland District Council,http://statistics.data.gov.uk/id/local-authority/32UF,Economic Development,Professional and Contractors Fees,12/03/2024,30042671,644.32 ,The Centre for Management and Business Development Ltd
South Holland District Council,http://statistics.data.gov.uk/id/local-authority/32UF,Environmental Services,Agency Staff,12/03/2024,30042470,"4,809.99 ",The Best Connection Group Ltd
South Holland District Council,http://statistics.data.gov.uk/id/local-authority/32UF,Environmental Services,Agency Staff,12/03/2024,30042471,"2,524.93 ",The Best Connection Group Ltd
South Holland District Council,http://statistics.data.gov.uk/id/local-authority/32UF,Environmental Services,Agency Staff,12/03/2024,30042680,"1,058.40 ",Integrity Plus Ltd
South Holland District Council,http://statistics.data.gov.uk/id/local-authority/32UF,Environmental Services,Agency Staff,12/03/2024,30042681,"1,118.40 ",Integrity Plus Ltd
South Holland District Council,http://statistics.data.gov.uk/id/local-authority/32UF,Environmental Services,Agency Staff,12/03/2024,30042685,"4,350.08 ",Integrity Plus Ltd
South Holland District Council,http://statistics.data.gov.uk/id/local-authority/32UF,Environmental Services,Agency Staff,12/03/2024,30042753,"1,848.85 ",Quality Service Recruitment Ltd
South Holland District Council,http://statistics.data.gov.uk/id/local-authority/32UF,Environmental Services,Fuel and Oil,12/03/2024,30042646,"8,041.09 ",C H Jones Ltd
South Holland District Council,http://statistics.data.gov.uk/id/local-authority/32UF,Environmental Services,Other Miscellaneous Expenses,12/03/2024,30042282,950.00 ,Greenscape Tree Safe Ltd
South Holland District Council,http://statistics.data.gov.uk/id/local-authority/32UF,Finance,Purchase of Hardware,12/03/2024,30042364,"3,793.34 ",Public Sector Partnership Services Ltd
South Holland District Council,http://statistics.data.gov.uk/id/local-authority/32UF,Head of ICT and Digital,Computer Software Licence Costs,12/03/2024,30041749,"14,851.88 ",Civica UK Limited
South Holland District Council,http://statistics.data.gov.uk/id/local-authority/32UF,Head of ICT and Digital,Computer Software Licence Costs,12/03/2024,30042594,"12,742.72 ",Public Sector Partnership Services Ltd
South Holland District Council,http://statistics.data.gov.uk/id/local-authority/32UF,Head of ICT and Digital,Computer Software Licence Costs,12/03/2024,30042597,"1,652.60 ",Public Sector Partnership Services Ltd
South Holland District Council,http://statistics.data.gov.uk/id/local-authority/32UF,Head of ICT and Digital,Purchase of Hardware,12/03/2024,30042364,"3,793.34 ",Public Sector Partnership Services Ltd
South Holland District Council,http://statistics.data.gov.uk/id/local-authority/32UF,Head of ICT and Digital,Telephone and Mobiles,12/03/2024,30042593,"4,821.18 ",Public Sector Partnership Services Ltd
South Holland District Council,http://statistics.data.gov.uk/id/local-authority/32UF,Head of ICT and Digital,Telephone and Mobiles,12/03/2024,30042596,837.10 ,Public Sector Partnership Services Ltd
South Holland District Council,http://statistics.data.gov.uk/id/local-authority/32UF,Leisure & Culture Communities,Other Income,12/03/2024,30042598,"-2,086.29 ",Live Promotions Events Ltd
South Holland District Council,http://statistics.data.gov.uk/id/local-authority/32UF,Leisure & Culture Communities,Payments to Bodies in Respect of Income Collected,12/03/2024,30042598,"7,177.50 ",Live Promotions Events Ltd
South Holland District Council,http://statistics.data.gov.uk/id/local-authority/32UF,Leisure & Culture Communities,Performers and Entertainers Fees,12/03/2024,30042676,"5,416.68 ",CBB Entertainments Ltd
South Holland District Council,http://statistics.data.gov.uk/id/local-authority/32UF,Leisure & Culture Communities,Professional and Contractors Fees,12/03/2024,30042510,560.00 ,South Lincs Security Limited
South Holland District Council,http://statistics.data.gov.uk/id/local-authority/32UF,Planning,Agency - Vacant Post Cover,12/03/2024,30042760,"3,108.00 ",Yimby Ltd
South Holland District Council,http://statistics.data.gov.uk/id/local-authority/32UF,Planning,Professional and Contractors Fees,12/03/2024,30042492,"41,316.00 ",Lincolnshire County Council
South Holland District Council,http://statistics.data.gov.uk/id/local-authority/32UF,AD Housing HRA,Agency Staff,14/03/2024,30042682,"1,398.68 ",Integrity Plus Ltd
South Holland District Council,http://statistics.data.gov.uk/id/local-authority/32UF,AD Housing HRA,Agency Staff,14/03/2024,30042739,"1,295.00 ",�Personal Information Redacted�
South Holland District Council,http://statistics.data.gov.uk/id/local-authority/32UF,AD Housing HRA,Agency Staff,14/03/2024,30042867,900.52 ,Integrity Plus Ltd
South Holland District Council,http://statistics.data.gov.uk/id/local-authority/32UF,AD Housing HRA,Buildings Maintenance - Responsive,14/03/2024,30041935,680.50 ,C G Godfrey Ltd
South Holland District Council,http://statistics.data.gov.uk/id/local-authority/32UF,AD Housing HRA,Cleaning Contract,14/03/2024,30042194,461.62 ,aAFD services Ltd
South Holland District Council,http://statistics.data.gov.uk/id/local-authority/32UF,AD Housing HRA,Cleaning Contract,14/03/2024,30042196,498.54 ,aAFD services Ltd
South Holland District Council,http://statistics.data.gov.uk/id/local-authority/32UF,AD Housing HRA,Fuel and Oil,14/03/2024,30042911,998.06 ,C H Jones Ltd
South Holland District Council,http://statistics.data.gov.uk/id/local-authority/32UF,AD Housing HRA,Materials and Consumables,14/03/2024,30042152,"4,709.52 ",Jewsons
South Holland District Council,http://statistics.data.gov.uk/id/local-authority/32UF,AD Housing HRA,Works to Buildings (Main Contractor),14/03/2024,30042620,"111,995.58 ",D Brown Building Contractors Ltd
South Holland District Council,http://statistics.data.gov.uk/id/local-authority/32UF,AD Housing HRA,Works to Buildings (Main Contractor),14/03/2024,30042699,"46,454.41 ",D Brown Building Contractors Ltd
South Holland District Council,http://statistics.data.gov.uk/id/local-authority/32UF,AD Strategic Growth and Development,Grants and Contributions to Outside Bodies - No Service Received,14/03/2024,30042693,"2,850.00 ",Gale Force Tyres Ltd
South Holland District Council,http://statistics.data.gov.uk/id/local-authority/32UF,AD Strategic Growth and Development,Grants and Contributions to Outside Bodies - No Service Received,14/03/2024,30042885,"1,000.00 ",Lincolnshire Community Foundation
South Holland District Council,http://statistics.data.gov.uk/id/local-authority/32UF,AD Strategic Growth and Development,Professional Fees,14/03/2024,30042384,950.00 ,Sequence (UK) Ltd
South Holland District Council,http://statistics.data.gov.uk/id/local-authority/32UF,AD Strategic Growth and Development,Professional Fees,14/03/2024,30042887,"1,511.00 ",Capsticks Solicitors LLP
South Holland District Council,http://statistics.data.gov.uk/id/local-authority/32UF,Asset & Property,Buildings Maintenance - Responsive,14/03/2024,30042200,821.11 ,Newflame
South Holland District Council,http://statistics.data.gov.uk/id/local-authority/32UF,Asset & Property,Buildings Maintenance - Responsive,14/03/2024,30042611,600.10 ,Glen Farrow UK Ltd
South Holland District Council,http://statistics.data.gov.uk/id/local-authority/32UF,Asset & Property,Fuel and Oil,14/03/2024,30042911,71.73 ,C H Jones Ltd
South Holland District Council,http://statistics.data.gov.uk/id/local-authority/32UF,Asset & Property,Water and Sewerage Charges,14/03/2024,30042821,"1,167.70 ",Wave
South Holland District Council,http://statistics.data.gov.uk/id/local-authority/32UF,Economic Development,Professional and Contractors Fees,14/03/2024,30042842,"1,950.00 ",The Centre for Management and Business Development Ltd
South Holland District Council,http://statistics.data.gov.uk/id/local-authority/32UF,Economic Development,Professional and Contractors Fees,14/03/2024,30042872,"5,642.10 ",Lincolnshire Business Growth Partners Ltd
South Holland District Council,http://statistics.data.gov.uk/id/local-authority/32UF,Environmental Services,Agency Staff,14/03/2024,30042776,"4,567.38 ",The Best Connection Group Ltd
South Holland District Council,http://statistics.data.gov.uk/id/local-authority/32UF,Environmental Services,Agency Staff,14/03/2024,30042777,"2,576.78 ",The Best Connection Group Ltd
South Holland District Council,http://statistics.data.gov.uk/id/local-authority/32UF,Environmental Services,Agency Staff,14/03/2024,30042859,466.00 ,Integrity Plus Ltd
South Holland District Council,http://statistics.data.gov.uk/id/local-authority/32UF,Environmental Services,Agency Staff,14/03/2024,30042863,"1,058.40 ",Integrity Plus Ltd
South Holland District Council,http://statistics.data.gov.uk/id/local-authority/32UF,Environmental Services,Agency Staff,14/03/2024,30042866,559.20 ,Integrity Plus Ltd
South Holland District Council,http://statistics.data.gov.uk/id/local-authority/32UF,Environmental Services,Agency Staff,14/03/2024,30042870,"4,656.87 ",Integrity Plus Ltd
South Holland District Council,http://statistics.data.gov.uk/id/local-authority/32UF,Environmental Services,Buildings Maintenance - Programmed,14/03/2024,30042840,561.40 ,Medway Galvanising Company Ltd t/a Joseph Ash Medway
South Holland District Council,http://statistics.data.gov.uk/id/local-authority/32UF,Environmental Services,Fuel and Oil,14/03/2024,30042911,"7,971.44 ",C H Jones Ltd
South Holland District Council,http://statistics.data.gov.uk/id/local-authority/32UF,Environmental Services,Grounds Maintenance Contract (External),14/03/2024,30042281,550.00 ,Greenscape Tree Safe Ltd
South Holland District Council,http://statistics.data.gov.uk/id/local-authority/32UF,Environmental Services,PSPS Non-Base Contract Costs,14/03/2024,30042854,"3,912.03 ",Public Sector Partnership Services Ltd
South Holland District Council,http://statistics.data.gov.uk/id/local-authority/32UF,Environmental Services,PSPS Non-Base Contract Costs,14/03/2024,30042855,"6,326.66 ",Public Sector Partnership Services Ltd
South Holland District Council,http://statistics.data.gov.uk/id/local-authority/32UF,Finance,Public Sector Partnership Services,14/03/2024,30042641,"282,653.16 ",Public Sector Partnership Services Ltd
South Holland District Council,http://statistics.data.gov.uk/id/local-authority/32UF,Leisure & Culture Communities,Agency Staff,14/03/2024,30042898,544.72 ,�Personal Information Redacted�
South Holland District Council,http://statistics.data.gov.uk/id/local-authority/32UF,Leisure & Culture Communities,Other Income,14/03/2024,30042734,"-1,705.00 ",Live Promotions Events Ltd
South Holland District Council,http://statistics.data.gov.uk/id/local-authority/32UF,Leisure & Culture Communities,Payments to Bodies in Respect of Income Collected,14/03/2024,30042734,"5,500.00 ",Live Promotions Events Ltd
South Holland District Council,http://statistics.data.gov.uk/id/local-authority/32UF,Leisure & Culture Communities,Performers and Entertainers Fees,14/03/2024,30042899,"5,925.82 ",Entertainers Show Providers Ltd
South Holland District Council,http://statistics.data.gov.uk/id/local-authority/32UF,Planning,Professional and Contractors Fees,14/03/2024,30042749,"3,000.00 ",DPA Planning Limited
South Holland District Council,http://statistics.data.gov.uk/id/local-authority/32UF,Planning,Professional and Contractors Fees,14/03/2024,30042750,"2,000.00 ",DPA Planning Limited
South Holland District Council,http://statistics.data.gov.uk/id/local-authority/32UF,Planning,Professional and Contractors Fees,14/03/2024,30042789,"5,000.00 ",DPA Planning Limited
South Holland District Council,http://statistics.data.gov.uk/id/local-authority/32UF,Public Protection,Fuel and Oil,14/03/2024,30042911,51.00 ,C H Jones Ltd
South Holland District Council,http://statistics.data.gov.uk/id/local-authority/32UF,AD Housing,Grants and Contributions to Outside Bodies - No Service Received,19/03/2024,30042985,"5,000.00 ",Tonic Health
South Holland District Council,http://statistics.data.gov.uk/id/local-authority/32UF,AD Housing,Grants and Contributions to Outside Bodies - No Service Received,19/03/2024,30042992,"10,000.00 ",Charis Grants Ltd
South Holland District Council,http://statistics.data.gov.uk/id/local-authority/32UF,AD Housing,Other Miscellaneous Expenses,19/03/2024,30042949,"26,122.56 ",South Holland Homes
South Holland District Council,http://statistics.data.gov.uk/id/local-authority/32UF,AD Housing HRA,Agency Staff,19/03/2024,30042811,"1,102.60 ",�Personal Information Redacted�
South Holland District Council,http://statistics.data.gov.uk/id/local-authority/32UF,AD Housing HRA,Agency Staff,19/03/2024,30042812,"1,102.60 ",�Personal Information Redacted�
South Holland District Council,http://statistics.data.gov.uk/id/local-authority/32UF,AD Housing HRA,Buildings Maintenance - Responsive,19/03/2024,30042312,638.41 ,Clearview Glaziers Company Ltd
South Holland District Council,http://statistics.data.gov.uk/id/local-authority/32UF,AD Housing HRA,Buildings Maintenance - Responsive,19/03/2024,30042316,477.15 ,Clearview Glaziers Company Ltd
South Holland District Council,http://statistics.data.gov.uk/id/local-authority/32UF,AD Housing HRA,Buildings Maintenance - Responsive,19/03/2024,30042329,479.26 ,Clearview Glaziers Company Ltd
South Holland District Council,http://statistics.data.gov.uk/id/local-authority/32UF,AD Housing HRA,Buildings Maintenance - Responsive,19/03/2024,30042330,"1,291.24 ",Clearview Glaziers Company Ltd
South Holland District Council,http://statistics.data.gov.uk/id/local-authority/32UF,AD Housing HRA,Buildings Maintenance - Responsive,19/03/2024,30042336,"1,371.72 ",Clearview Glaziers Company Ltd
South Holland District Council,http://statistics.data.gov.uk/id/local-authority/32UF,AD Housing HRA,Buildings Maintenance - Responsive,19/03/2024,30042880,425.00 ,Boors Ltd
South Holland District Council,http://statistics.data.gov.uk/id/local-authority/32UF,AD Housing HRA,Buildings Maintenance - Responsive,19/03/2024,30042951,"1,247.77 ",C G Godfrey Ltd
South Holland District Council,http://statistics.data.gov.uk/id/local-authority/32UF,AD Housing HRA,Drain Repairs,19/03/2024,30042475,"1,325.00 ",C G Godfrey Ltd
South Holland District Council,http://statistics.data.gov.uk/id/local-authority/32UF,AD Housing HRA,External Printing and Design Costs,19/03/2024,30042950,749.00 ,Newton Press Ltd
South Holland District Council,http://statistics.data.gov.uk/id/local-authority/32UF,AD Housing HRA,Grounds Maintenance Contract (External),19/03/2024,30042860,600.00 ,Greenscape Tree Safe Ltd
South Holland District Council,http://statistics.data.gov.uk/id/local-authority/32UF,AD Housing HRA,Materials and Consumables,19/03/2024,30041879,"7,714.91 ",Jewsons
South Holland District Council,http://statistics.data.gov.uk/id/local-authority/32UF,AD Housing HRA,Materials and Consumables,19/03/2024,30042271,"7,015.24 ",Jewsons
South Holland District Council,http://statistics.data.gov.uk/id/local-authority/32UF,AD Housing HRA,Materials and Consumables,19/03/2024,30042845,"1,322.92 ",EPH Supplies Wholesale Ltd
South Holland District Council,http://statistics.data.gov.uk/id/local-authority/32UF,AD Housing HRA,Materials and Consumables,19/03/2024,30042848,459.94 ,Howdens Joinery Co. (Acc 1000118018)
South Holland District Council,http://statistics.data.gov.uk/id/local-authority/32UF,AD Housing HRA,Materials and Consumables,19/03/2024,30042923,458.22 ,EPH Supplies Wholesale Ltd
South Holland District Council,http://statistics.data.gov.uk/id/local-authority/32UF,AD Housing HRA,Postages,19/03/2024,30042846,"6,297.80 ",Newton Press Ltd
South Holland District Council,http://statistics.data.gov.uk/id/local-authority/32UF,AD Housing HRA,Postages,19/03/2024,30042950,"1,088.62 ",Newton Press Ltd
South Holland District Council,http://statistics.data.gov.uk/id/local-authority/32UF,AD Housing HRA,Professional and Contractors Fees,19/03/2024,30042971,"2,062.00 ",Language Line Ltd
South Holland District Council,http://statistics.data.gov.uk/id/local-authority/32UF,AD Housing HRA,PSPS Non-Base Contract Costs,19/03/2024,30042978,867.09 ,Public Sector Partnership Services Ltd
South Holland District Council,http://statistics.data.gov.uk/id/local-authority/32UF,AD Housing HRA,Roof Repairs,19/03/2024,30042879,575.00 ,Wrights and Holbeach Asphalt Ltd
South Holland District Council,http://statistics.data.gov.uk/id/local-authority/32UF,AD Strategic Growth and Development,Agency Staff,19/03/2024,30042576,925.00 ,Michael Page Internat Recruitment Ltd
South Holland District Council,http://statistics.data.gov.uk/id/local-authority/32UF,AD Strategic Growth and Development,Grants and Contributions to Outside Bodies - No Service Received,19/03/2024,30042784,"4,979.73 ",Matthew Flinders Bring Him Home Group
South Holland District Council,http://statistics.data.gov.uk/id/local-authority/32UF,AD Strategic Growth and Development,Grants and Contributions to Outside Bodies - No Service Received,19/03/2024,30042983,"21,905.05 ",NBV Enterprise Solutions Limited
South Holland District Council,http://statistics.data.gov.uk/id/local-authority/32UF,AD Strategic Growth and Development,Grants and Contributions to Outside Bodies - No Service Received,19/03/2024,30043029,"2,024.03 ",St Mary's Whaplode Parochial Church Council
South Holland District Council,http://statistics.data.gov.uk/id/local-authority/32UF,AD Strategic Growth and Development,Professional Fees,19/03/2024,30042755,450.00 ,Messrs Longstaff and Co
South Holland District Council,http://statistics.data.gov.uk/id/local-authority/32UF,AD Strategic Growth and Development - HRA,Professional and Contractors Fees,19/03/2024,30042787,650.00 ,Messrs Longstaff and Co
South Holland District Council,http://statistics.data.gov.uk/id/local-authority/32UF,AD Wellbeing and Community Leadership,Grants and Contributions to Outside Bodies - No Service Received,19/03/2024,30042985,"5,000.00 ",Tonic Health
South Holland District Council,http://statistics.data.gov.uk/id/local-authority/32UF,AD Wellbeing and Community Leadership,Grants and Contributions to Outside Bodies - No Service Received,19/03/2024,30042992,"10,000.00 ",Charis Grants Ltd
South Holland District Council,http://statistics.data.gov.uk/id/local-authority/32UF,Asset & Property,Agency Staff,19/03/2024,30042869,"2,343.95 ",Integrity Plus Ltd
South Holland District Council,http://statistics.data.gov.uk/id/local-authority/32UF,Asset & Property,Buildings Maintenance - Programmed,19/03/2024,30042953,"1,337.50 ",Elite Electrical (Eastern) Ltd
South Holland District Council,http://statistics.data.gov.uk/id/local-authority/32UF,Asset & Property,Buildings Maintenance - Responsive,19/03/2024,30042816,476.38 ,Glen Farrow UK Ltd
South Holland District Council,http://statistics.data.gov.uk/id/local-authority/32UF,Asset & Property,Tyres,19/03/2024,30043057,84.00 ,Vaculug Technologies Ltd
South Holland District Council,http://statistics.data.gov.uk/id/local-authority/32UF,Asset & Property,Works to Buildings (Main Contractor),19/03/2024,30042190,613.00 ,Vere Bros (Contractors) Ltd
South Holland District Council,http://statistics.data.gov.uk/id/local-authority/32UF,Capital - Strategic Finance & Compliance,Works to Buildings (Main Contractor),19/03/2024,30042190,613.00 ,Vere Bros (Contractors) Ltd
South Holland District Council,http://statistics.data.gov.uk/id/local-authority/32UF,Democratic Services - Democratic,Other Miscellaneous Expenses,19/03/2024,30042829,"1,500.00 ",Gedney Parochial Church Council
South Holland District Council,http://statistics.data.gov.uk/id/local-authority/32UF,Democratic Services - Democratic,Other Miscellaneous Expenses,19/03/2024,30042830,"1,000.00 ",St Mary's Whaplode Parochial Church Council
South Holland District Council,http://statistics.data.gov.uk/id/local-authority/32UF,Democratic Services - Democratic,Other Miscellaneous Expenses,19/03/2024,30042881,750.00 ,Deeping St Nicholas Parish Council
South Holland District Council,http://statistics.data.gov.uk/id/local-authority/32UF,Economic Development,Agency Staff,19/03/2024,30042576,925.00 ,Michael Page Internat Recruitment Ltd
South Holland District Council,http://statistics.data.gov.uk/id/local-authority/32UF,Environmental Services,Agency Staff,19/03/2024,30042386,"2,362.50 ",Caledonian Automotive Recruitment
South Holland District Council,http://statistics.data.gov.uk/id/local-authority/32UF,Environmental Services,Agency Staff,19/03/2024,30043015,"2,358.45 ",The Best Connection Group Ltd
South Holland District Council,http://statistics.data.gov.uk/id/local-authority/32UF,Environmental Services,Agency Staff,19/03/2024,30043016,"4,759.50 ",The Best Connection Group Ltd
South Holland District Council,http://statistics.data.gov.uk/id/local-authority/32UF,Environmental Services,Agency Staff,19/03/2024,30043058,"4,804.85 ",Quality Service Recruitment Ltd
South Holland District Council,http://statistics.data.gov.uk/id/local-authority/32UF,Environmental Services,Tyres,19/03/2024,30043057,"5,530.70 ",Vaculug Technologies Ltd
South Holland District Council,http://statistics.data.gov.uk/id/local-authority/32UF,Environmental Services,Workshop Parts,19/03/2024,30042393,667.50 ,Dennis Eagle
South Holland District Council,http://statistics.data.gov.uk/id/local-authority/32UF,Finance,Business Rates - Contribution to Surplus/Deficit,19/03/2024,30043365,"58,582.00 ",MHCLG (RSG)
South Holland District Council,http://statistics.data.gov.uk/id/local-authority/32UF,Finance,Business Rates - Share of Income Central Government,19/03/2024,30043365,"969,480.00 ",MHCLG (RSG)
South Holland District Council,http://statistics.data.gov.uk/id/local-authority/32UF,Finance,Business Rates - Transitional Protection Payments,19/03/2024,30043365,"-113,832.00 ",MHCLG (RSG)
South Holland District Council,http://statistics.data.gov.uk/id/local-authority/32UF,Finance,Business Rates Tariff,19/03/2024,30043333,"485,919.00 ",Lincolnshire County Council (CHAPS ONLY)
South Holland District Council,http://statistics.data.gov.uk/id/local-authority/32UF,Finance,Non-Ringfenced Government Grants - RSG,19/03/2024,30043365,"-33,892.00 ",MHCLG (RSG)
South Holland District Council,http://statistics.data.gov.uk/id/local-authority/32UF,Finance,Professional and Contractors Fees,19/03/2024,30042839,"35,100.00 ",Lincolnshire County Council
South Holland District Council,http://statistics.data.gov.uk/id/local-authority/32UF,Finance,"Purchase of Plant, Machinery and Equipment",19/03/2024,30043061,"19,894.00 ",Taylors Service Garages
South Holland District Council,http://statistics.data.gov.uk/id/local-authority/32UF,Finance,Subscriptions to Organisations and Other Bodies,19/03/2024,30042832,"6,630.00 ",LG Futures Ltd
South Holland District Council,http://statistics.data.gov.uk/id/local-authority/32UF,Finance,Telephone and Mobiles,19/03/2024,30042366,70.00 ,British Telecom Corporate Plc
South Holland District Council,http://statistics.data.gov.uk/id/local-authority/32UF,Head of ICT and Digital,Computer Hardware Maintenance,19/03/2024,30042960,"1,328.34 ",E File UK Ltd
South Holland District Council,http://statistics.data.gov.uk/id/local-authority/32UF,Head of ICT and Digital,Computer Hardware Purchase,19/03/2024,30042972,684.00 ,Probrand Ltd
South Holland District Council,http://statistics.data.gov.uk/id/local-authority/32UF,Head of ICT and Digital,Telephone and Mobiles,19/03/2024,30042366,"2,665.19 ",British Telecom Corporate Plc
South Holland District Council,http://statistics.data.gov.uk/id/local-authority/32UF,Head of Revenues and Benefits,PSPS Non-Base Contract Costs,19/03/2024,30042979,"14,210.00 ",Public Sector Partnership Services Ltd
South Holland District Council,http://statistics.data.gov.uk/id/local-authority/32UF,Leisure & Culture Communities,Other Income,19/03/2024,30042733,-837.40 ,Act II
South Holland District Council,http://statistics.data.gov.uk/id/local-authority/32UF,Leisure & Culture Communities,Payments to Bodies in Respect of Income Collected,19/03/2024,30042733,"1,354.00 ",Act II
South Holland District Council,http://statistics.data.gov.uk/id/local-authority/32UF,Leisure & Culture Communities,Performers and Entertainers Fees,19/03/2024,30043013,"1,732.79 ",Andrew Newton Hypnosis
South Holland District Council,http://statistics.data.gov.uk/id/local-authority/32UF,Leisure & Culture Communities,Professional and Contractors Fees,19/03/2024,30042505,928.00 ,Agenda Cleaning Services
South Holland District Council,http://statistics.data.gov.uk/id/local-authority/32UF,Planning,Grants and Contributions to Outside Bodies - No Service Received,19/03/2024,30041922,"848,669.08 ",Lincolnshire County Council (S106)
South Holland District Council,http://statistics.data.gov.uk/id/local-authority/32UF,Public Protection,Professional and Contractors Fees,19/03/2024,30039889,"1,100.00 ",LA Support Limited
South Holland District Council,http://statistics.data.gov.uk/id/local-authority/32UF,Public Protection,Professional and Contractors Fees,19/03/2024,30041503,"2,200.00 ",LA Support Limited
South Holland District Council,http://statistics.data.gov.uk/id/local-authority/32UF,AD Housing,Grants and Contributions to Outside Bodies - No Service Received,21/03/2024,30042691,"12,150.09 ",Westone Housing Ltd
South Holland District Council,http://statistics.data.gov.uk/id/local-authority/32UF,AD Housing,Grants and Contributions to Outside Bodies - No Service Received,21/03/2024,30043075,"10,185.23 ",Ron Gale and Sons Ltd
South Holland District Council,http://statistics.data.gov.uk/id/local-authority/32UF,AD Housing HRA,Fuel and Oil,21/03/2024,30043174,857.29 ,C H Jones Ltd
South Holland District Council,http://statistics.data.gov.uk/id/local-authority/32UF,AD Housing HRA,Gas,21/03/2024,30042896,597.47 ,Espo Gas and Electricity
South Holland District Council,http://statistics.data.gov.uk/id/local-authority/32UF,AD Housing HRA,Gas,21/03/2024,30042900,840.74 ,Espo Gas and Electricity
South Holland District Council,http://statistics.data.gov.uk/id/local-authority/32UF,AD Housing HRA,Grounds Maintenance Contract (External),21/03/2024,30042974,650.00 ,Greenscape Tree Safe Ltd
South Holland District Council,http://statistics.data.gov.uk/id/local-authority/32UF,AD Housing HRA,Professional and Contractors Fees,21/03/2024,30043198,570.00 ,Travelers Insurance Co Ltd
South Holland District Council,http://statistics.data.gov.uk/id/local-authority/32UF,AD Housing HRA,Purchase of Hardware,21/03/2024,30043071,"2,007.60 ",Public Sector Partnership Services Ltd
South Holland District Council,http://statistics.data.gov.uk/id/local-authority/32UF,AD Strategic Growth and Development,Grants and Contributions to Outside Bodies - No Service Received,21/03/2024,30042901,"7,148.41 ",Lincs Chamber of Commerce and  Industry
South Holland District Council,http://statistics.data.gov.uk/id/local-authority/32UF,AD Strategic Growth and Development,Grants and Contributions to Outside Bodies - No Service Received,21/03/2024,30043066,"2,386.00 ",D A Engineering UK Ltd
South Holland District Council,http://statistics.data.gov.uk/id/local-authority/32UF,AD Wellbeing and Community Leadership,Grants and Contributions to Outside Bodies - No Service Received,21/03/2024,30042691,"24,300.18 ",Westone Housing Ltd
South Holland District Council,http://statistics.data.gov.uk/id/local-authority/32UF,AD Wellbeing and Community Leadership,Grants and Contributions to Outside Bodies - No Service Received,21/03/2024,30043075,"20,370.46 ",Ron Gale and Sons Ltd
South Holland District Council,http://statistics.data.gov.uk/id/local-authority/32UF,AD Wellbeing and Community Leadership,Grants and Contributions to Outside Bodies - No Service Received,21/03/2024,30043169,"25,990.00 ",East Lindsey District Council
South Holland District Council,http://statistics.data.gov.uk/id/local-authority/32UF,Asset & Property,Fuel and Oil,21/03/2024,30043174,55.11 ,C H Jones Ltd
South Holland District Council,http://statistics.data.gov.uk/id/local-authority/32UF,Asset & Property,Gas,21/03/2024,30042903,"8,489.57 ",Espo Gas and Electricity
South Holland District Council,http://statistics.data.gov.uk/id/local-authority/32UF,Economic Development,Professional and Contractors Fees,21/03/2024,30040685,551.00 ,Public Sector Partnership Services Ltd
South Holland District Council,http://statistics.data.gov.uk/id/local-authority/32UF,Environmental Services,Fuel and Oil,21/03/2024,30043174,"8,396.15 ",C H Jones Ltd
South Holland District Council,http://statistics.data.gov.uk/id/local-authority/32UF,Finance,Purchase of Hardware,21/03/2024,30043071,"3,011.40 ",Public Sector Partnership Services Ltd
South Holland District Council,http://statistics.data.gov.uk/id/local-authority/32UF,Finance,Shared Management,21/03/2024,30033508,"316,695.41 ",East Lindsey District Council
South Holland District Council,http://statistics.data.gov.uk/id/local-authority/32UF,Head of ICT and Digital,Purchase of Hardware,21/03/2024,30043071,"3,011.40 ",Public Sector Partnership Services Ltd
South Holland District Council,http://statistics.data.gov.uk/id/local-authority/32UF,Head of ICT and Digital,Telephone and Mobiles,21/03/2024,30043068,825.96 ,Public Sector Partnership Services Ltd
South Holland District Council,http://statistics.data.gov.uk/id/local-authority/32UF,Leisure & Culture Communities,Gas,21/03/2024,30042904,"3,684.86 ",Espo Gas and Electricity
South Holland District Council,http://statistics.data.gov.uk/id/local-authority/32UF,Public Protection,Professional and Contractors Fees,21/03/2024,30042810,500.00 ,Pengelly and Mizen Vets
South Holland District Council,http://statistics.data.gov.uk/id/local-authority/32UF,Public Protection,Professional and Contractors Fees,21/03/2024,30042850,"3,025.78 ",Lincolnshire County Council
South Holland District Council,http://statistics.data.gov.uk/id/local-authority/32UF,Public Protection,Professional and Contractors Fees,21/03/2024,30042957,"3,208.26 ",Lincolnshire County Council
South Holland District Council,http://statistics.data.gov.uk/id/local-authority/32UF,AD Strategic Growth and Development,Purchase of Buildings,22/03/2024,30043249,"207,211.60 ",Howes Percival
South Holland District Council,http://statistics.data.gov.uk/id/local-authority/32UF,AD Strategic Growth and Development,Purchase of Buildings,22/03/2024,30043368,"701,097.02 ",Howes Percival
South Holland District Council,http://statistics.data.gov.uk/id/local-authority/32UF,AD Housing,Other Miscellaneous Expenses,26/03/2024,30043154,"35,332.61 ",Broadgate Builders (Spalding) Ltd
South Holland District Council,http://statistics.data.gov.uk/id/local-authority/32UF,AD Housing,Other Miscellaneous Expenses,26/03/2024,30043157,"19,387.00 ",Broadgate Builders (Spalding) Ltd
South Holland District Council,http://statistics.data.gov.uk/id/local-authority/32UF,AD Housing,Other Miscellaneous Expenses,26/03/2024,30043241,"15,097.62 ",Broadgate Homes Ltd
South Holland District Council,http://statistics.data.gov.uk/id/local-authority/32UF,AD Housing,Other Miscellaneous Expenses,26/03/2024,30043242,"11,242.07 ",Broadgate Homes Ltd
South Holland District Council,http://statistics.data.gov.uk/id/local-authority/32UF,AD Housing,Other Miscellaneous Expenses,26/03/2024,30043243,"11,992.74 ",Broadgate Homes Ltd
South Holland District Council,http://statistics.data.gov.uk/id/local-authority/32UF,AD Housing HRA,Agency Staff,26/03/2024,30043059,"1,174.50 ",�Personal Information Redacted�
South Holland District Council,http://statistics.data.gov.uk/id/local-authority/32UF,AD Housing HRA,Agency Staff,26/03/2024,30043060,879.10 ,�Personal Information Redacted�
South Holland District Council,http://statistics.data.gov.uk/id/local-authority/32UF,AD Housing HRA,Agency Staff,26/03/2024,30043210,"1,295.00 ",�Personal Information Redacted�
South Holland District Council,http://statistics.data.gov.uk/id/local-authority/32UF,AD Housing HRA,Agency Staff,26/03/2024,30043236,"1,398.68 ",Integrity Plus Ltd
South Holland District Council,http://statistics.data.gov.uk/id/local-authority/32UF,AD Housing HRA,Banking Charges,26/03/2024,30043600,463.78 ,AllPay Limited
South Holland District Council,http://statistics.data.gov.uk/id/local-authority/32UF,AD Housing HRA,Buildings Maintenance - Responsive,26/03/2024,30043076,"4,250.00 ",Boors Ltd
South Holland District Council,http://statistics.data.gov.uk/id/local-authority/32UF,AD Housing HRA,Buildings Maintenance - Responsive,26/03/2024,30043220,"2,120.75 ",C G Godfrey Ltd
South Holland District Council,http://statistics.data.gov.uk/id/local-authority/32UF,AD Housing HRA,Buildings Maintenance - Responsive,26/03/2024,30043221,865.00 ,�Personal Information Redacted�
South Holland District Council,http://statistics.data.gov.uk/id/local-authority/32UF,AD Housing HRA,Buildings Maintenance - Responsive,26/03/2024,30043222,"1,910.78 ",C G Godfrey Ltd
South Holland District Council,http://statistics.data.gov.uk/id/local-authority/32UF,AD Housing HRA,Damp Proofing,26/03/2024,30042496,"22,324.69 ",Bell Decorating Group
South Holland District Council,http://statistics.data.gov.uk/id/local-authority/32UF,AD Housing HRA,Furniture and Equipment,26/03/2024,30042564,975.73 ,Veolia Es UK Ltd
South Holland District Council,http://statistics.data.gov.uk/id/local-authority/32UF,AD Housing HRA,Furniture and Equipment,26/03/2024,30042568,202.70 ,Veolia Es UK Ltd
South Holland District Council,http://statistics.data.gov.uk/id/local-authority/32UF,AD Housing HRA,Gas Repairs,26/03/2024,30042707,"18,335.55 ",Aaron Services Ltd
South Holland District Council,http://statistics.data.gov.uk/id/local-authority/32UF,AD Housing HRA,Gas Servicing,26/03/2024,30042705,"19,226.72 ",Aaron Services Ltd
South Holland District Council,http://statistics.data.gov.uk/id/local-authority/32UF,AD Housing HRA,Gas Servicing,26/03/2024,30042706,979.62 ,Aaron Services Ltd
South Holland District Council,http://statistics.data.gov.uk/id/local-authority/32UF,AD Housing HRA,Internet Broadband Payments,26/03/2024,30042426,81.99 ,Multidata
South Holland District Council,http://statistics.data.gov.uk/id/local-authority/32UF,AD Housing HRA,Materials and Consumables,26/03/2024,30042503,"4,155.17 ",Jewsons
South Holland District Council,http://statistics.data.gov.uk/id/local-authority/32UF,AD Housing HRA,Materials and Consumables,26/03/2024,30043031,684.82 ,EPH Supplies Wholesale Ltd
South Holland District Council,http://statistics.data.gov.uk/id/local-authority/32UF,AD Housing HRA,Materials and Consumables,26/03/2024,30043175,463.88 ,EPH Supplies Wholesale Ltd
South Holland District Council,http://statistics.data.gov.uk/id/local-authority/32UF,AD Housing HRA,Other Income,26/03/2024,30042247,"2,495.75 ",Boston Borough Council
South Holland District Council,http://statistics.data.gov.uk/id/local-authority/32UF,AD Housing HRA,Professional and Contractors Fees,26/03/2024,30042480,"5,035.00 ",Environtec Limited
South Holland District Council,http://statistics.data.gov.uk/id/local-authority/32UF,AD Housing HRA,Professional and Contractors Fees,26/03/2024,30042522,"1,097.52 ",Morgan Lambert Ltd 2018
South Holland District Council,http://statistics.data.gov.uk/id/local-authority/32UF,AD Housing HRA,Professional and Contractors Fees,26/03/2024,30042533,"1,608.00 ",Language Line Ltd
South Holland District Council,http://statistics.data.gov.uk/id/local-authority/32UF,AD Housing HRA,Professional and Contractors Fees,26/03/2024,30042788,880.00 ,Complete Certification Ltd
South Holland District Council,http://statistics.data.gov.uk/id/local-authority/32UF,AD Housing HRA,Purchase of Hardware,26/03/2024,30042418,"14,244.30 ",Dell Corporation Ltd
South Holland District Council,http://statistics.data.gov.uk/id/local-authority/32UF,AD Housing HRA,Renewable Energy Servicing,26/03/2024,30042704,"2,026.35 ",Aaron Services Ltd
South Holland District Council,http://statistics.data.gov.uk/id/local-authority/32UF,AD Housing HRA,Roof Repairs,26/03/2024,30042352,"31,927.33 ",Hodgson Sayers Ltd
South Holland District Council,http://statistics.data.gov.uk/id/local-authority/32UF,AD Housing HRA,Roof Repairs,26/03/2024,30042701,"31,927.33 ",Hodgson Sayers Ltd
South Holland District Council,http://statistics.data.gov.uk/id/local-authority/32UF,AD Housing HRA,Roof Repairs,26/03/2024,30043248,"1,120.00 ",Kev Forman Roofing Ltd
South Holland District Council,http://statistics.data.gov.uk/id/local-authority/32UF,AD Housing HRA,Roof Repairs,26/03/2024,30043256,"1,350.00 ",Kev Forman Roofing Ltd
South Holland District Council,http://statistics.data.gov.uk/id/local-authority/32UF,AD Housing HRA,Roof Repairs,26/03/2024,30043258,900.00 ,Kev Forman Roofing Ltd
South Holland District Council,http://statistics.data.gov.uk/id/local-authority/32UF,AD Housing HRA,Roof Repairs,26/03/2024,30043260,760.00 ,Kev Forman Roofing Ltd
South Holland District Council,http://statistics.data.gov.uk/id/local-authority/32UF,AD Housing HRA,Solid Fuel Servicing,26/03/2024,30042710,849.42 ,Aaron Services Ltd
South Holland District Council,http://statistics.data.gov.uk/id/local-authority/32UF,AD Housing HRA,Staff Training Expenses (Non-Payroll),26/03/2024,30043382,"11,500.00 ",Chartered Institute of Housing
South Holland District Council,http://statistics.data.gov.uk/id/local-authority/32UF,AD Housing HRA,Void Decoration,26/03/2024,30043290,"9,006.39 ",Mitie Property Services UK Ltd
South Holland District Council,http://statistics.data.gov.uk/id/local-authority/32UF,AD Housing HRA,Void Decoration,26/03/2024,30043292,"4,393.12 ",Mitie Property Services UK Ltd
South Holland District Council,http://statistics.data.gov.uk/id/local-authority/32UF,AD Housing HRA,Void Repairs,26/03/2024,30043048,"3,995.00 ",Greenscape Tree Safe Ltd
South Holland District Council,http://statistics.data.gov.uk/id/local-authority/32UF,AD Housing HRA,Works to Buildings (Main Contractor),26/03/2024,30042363,"6,563.39 ",Harmony Fire
South Holland District Council,http://statistics.data.gov.uk/id/local-authority/32UF,AD Housing HRA,Works to Buildings (Main Contractor),26/03/2024,30042403,"40,374.03 ",Aaron Services Ltd
South Holland District Council,http://statistics.data.gov.uk/id/local-authority/32UF,AD Housing HRA,Works to Buildings (Main Contractor),26/03/2024,30042408,"31,045.43 ",Hodgson Sayers Ltd
South Holland District Council,http://statistics.data.gov.uk/id/local-authority/32UF,AD Housing HRA,Works to Buildings (Main Contractor),26/03/2024,30042420,"32,047.18 ",Hodgson Sayers Ltd
South Holland District Council,http://statistics.data.gov.uk/id/local-authority/32UF,AD Housing HRA,Works to Buildings (Main Contractor),26/03/2024,30042484,"106,243.90 ",Westone Housing Ltd
South Holland District Council,http://statistics.data.gov.uk/id/local-authority/32UF,AD Housing HRA,Works to Buildings (Main Contractor),26/03/2024,30042493,"44,920.24 ",Harmony Fire
South Holland District Council,http://statistics.data.gov.uk/id/local-authority/32UF,AD Housing HRA,Works to Buildings (Main Contractor),26/03/2024,30042495,"149,653.75 ",Clearview Glaziers Company Ltd
South Holland District Council,http://statistics.data.gov.uk/id/local-authority/32UF,AD Housing HRA,Works to Buildings (Main Contractor),26/03/2024,30042883,"10,356.42 ",C.E.L. Group (1989) Limited
South Holland District Council,http://statistics.data.gov.uk/id/local-authority/32UF,AD Strategic Growth and Development,Grants and Contributions to Outside Bodies - No Service Received,26/03/2024,30043067,"6,853.00 ",Ace Tones Entertainments Limited
South Holland District Council,http://statistics.data.gov.uk/id/local-authority/32UF,AD Strategic Growth and Development,Grants and Contributions to Outside Bodies - No Service Received,26/03/2024,30043332,"12,071.80 ",Lincolnshire Community Foundation
South Holland District Council,http://statistics.data.gov.uk/id/local-authority/32UF,AD Strategic Growth and Development,Professional Fees,26/03/2024,30042439,950.00 ,Sequence (UK) Ltd
South Holland District Council,http://statistics.data.gov.uk/id/local-authority/32UF,AD Strategic Growth and Development,Professional Fees,26/03/2024,30042648,"1,925.00 ",Focus Consultants 2010 LLP
South Holland District Council,http://statistics.data.gov.uk/id/local-authority/32UF,AD Strategic Growth and Development,Professional Fees,26/03/2024,30042650,950.00 ,Sequence (UK) Ltd
South Holland District Council,http://statistics.data.gov.uk/id/local-authority/32UF,AD Wellbeing and Community Leadership HRA,Works to Buildings (Main Contractor),26/03/2024,30042484,"53,121.95 ",Westone Housing Ltd
South Holland District Council,http://statistics.data.gov.uk/id/local-authority/32UF,Asset & Property,Agency Staff,26/03/2024,30042868,"1,267.62 ",Integrity Plus Ltd
South Holland District Council,http://statistics.data.gov.uk/id/local-authority/32UF,Asset & Property,Agency Staff,26/03/2024,30043237,"1,413.23 ",Integrity Plus Ltd
South Holland District Council,http://statistics.data.gov.uk/id/local-authority/32UF,Asset & Property,Agency Staff,26/03/2024,30043238,"2,510.90 ",Integrity Plus Ltd
South Holland District Council,http://statistics.data.gov.uk/id/local-authority/32UF,Asset & Property,Buildings Maintenance - Programmed,26/03/2024,30042955,"3,000.00 ",Spalding Air Conditioning Services Ltd
South Holland District Council,http://statistics.data.gov.uk/id/local-authority/32UF,Asset & Property,Buildings Maintenance - Responsive,26/03/2024,30043209,"1,200.00 ",Glen Farrow UK Ltd
South Holland District Council,http://statistics.data.gov.uk/id/local-authority/32UF,Asset & Property,Buildings Maintenance - Responsive,26/03/2024,30043377,627.00 ,M and R Glass and Glazing Ltd
South Holland District Council,http://statistics.data.gov.uk/id/local-authority/32UF,Asset & Property,Professional and Contractors Fees,26/03/2024,30042499,"2,558.49 ",Chase Services Group LTD
South Holland District Council,http://statistics.data.gov.uk/id/local-authority/32UF,Asset & Property,Professional and Contractors Fees,26/03/2024,30042652,675.00 ,Alan Wood Partnership Ltd
South Holland District Council,http://statistics.data.gov.uk/id/local-authority/32UF,Asset & Property,Professional and Contractors Fees,26/03/2024,30042906,"2,170.13 ",Lincolnshire County Council
South Holland District Council,http://statistics.data.gov.uk/id/local-authority/32UF,Asset & Property,Purchase of Hardware,26/03/2024,30042343,756.51 ,Matrix Network Services Ltd
South Holland District Council,http://statistics.data.gov.uk/id/local-authority/32UF,Asset & Property,Purchase of Hardware,26/03/2024,30042385,"2,480.56 ",Matrix Network Services Ltd
South Holland District Council,http://statistics.data.gov.uk/id/local-authority/32UF,Asset & Property,Purchase of Hardware,26/03/2024,30042391,600.30 ,Probrand Ltd
South Holland District Council,http://statistics.data.gov.uk/id/local-authority/32UF,Asset & Property,Works to Buildings (Main Contractor),26/03/2024,30042404,"8,215.00 ",Jointline
South Holland District Council,http://statistics.data.gov.uk/id/local-authority/32UF,Asset & Property,Works to Buildings (Main Contractor),26/03/2024,30042413,"4,440.00 ",Alfred Bagnall & Sons (East Midlands) Ltd
South Holland District Council,http://statistics.data.gov.uk/id/local-authority/32UF,Asset & Property,Works to Buildings (Main Contractor),26/03/2024,30042763,"15,678.00 ",Vere Bros (Contractors) Ltd
South Holland District Council,http://statistics.data.gov.uk/id/local-authority/32UF,Asset & Property,Works to Buildings (Main Contractor),26/03/2024,30042764,"40,517.00 ",Vere Bros (Contractors) Ltd
South Holland District Council,http://statistics.data.gov.uk/id/local-authority/32UF,Asset & Property,Works to Buildings (Main Contractor),26/03/2024,30043253,744.00 ,Elite Electrical (Eastern) Ltd
South Holland District Council,http://statistics.data.gov.uk/id/local-authority/32UF,Capital - Strategic Finance & Compliance,Purchase of Hardware,26/03/2024,30042343,756.51 ,Matrix Network Services Ltd
South Holland District Council,http://statistics.data.gov.uk/id/local-authority/32UF,Capital - Strategic Finance & Compliance,Purchase of Hardware,26/03/2024,30042385,"2,480.56 ",Matrix Network Services Ltd
South Holland District Council,http://statistics.data.gov.uk/id/local-authority/32UF,Capital - Strategic Finance & Compliance,Purchase of Hardware,26/03/2024,30042391,600.30 ,Probrand Ltd
South Holland District Council,http://statistics.data.gov.uk/id/local-authority/32UF,Capital - Strategic Finance & Compliance,Works to Buildings (Main Contractor),26/03/2024,30042404,"8,215.00 ",Jointline
South Holland District Council,http://statistics.data.gov.uk/id/local-authority/32UF,Capital - Strategic Finance & Compliance,Works to Buildings (Main Contractor),26/03/2024,30042413,"4,440.00 ",Alfred Bagnall & Sons (East Midlands) Ltd
South Holland District Council,http://statistics.data.gov.uk/id/local-authority/32UF,Capital - Strategic Finance & Compliance,Works to Buildings (Main Contractor),26/03/2024,30042763,"15,678.00 ",Vere Bros (Contractors) Ltd
South Holland District Council,http://statistics.data.gov.uk/id/local-authority/32UF,Capital - Strategic Finance & Compliance,Works to Buildings (Main Contractor),26/03/2024,30042764,"40,517.00 ",Vere Bros (Contractors) Ltd
South Holland District Council,http://statistics.data.gov.uk/id/local-authority/32UF,Capital - Strategic Finance & Compliance,Works to Buildings (Main Contractor),26/03/2024,30043253,744.00 ,Elite Electrical (Eastern) Ltd
South Holland District Council,http://statistics.data.gov.uk/id/local-authority/32UF,Communications,Other Miscellaneous Expenses,26/03/2024,30042426,119.85 ,Multidata
South Holland District Council,http://statistics.data.gov.uk/id/local-authority/32UF,Environmental Services,Agency Staff,26/03/2024,30042677,"2,362.50 ",Caledonian Automotive Recruitment
South Holland District Council,http://statistics.data.gov.uk/id/local-authority/32UF,Environmental Services,Agency Staff,26/03/2024,30043234,"1,058.40 ",Integrity Plus Ltd
South Holland District Council,http://statistics.data.gov.uk/id/local-authority/32UF,Environmental Services,Agency Staff,26/03/2024,30043235,"1,165.00 ",Integrity Plus Ltd
South Holland District Council,http://statistics.data.gov.uk/id/local-authority/32UF,Environmental Services,Clothing Uniforms and Laundry,26/03/2024,30042345,"5,305.10 ",SMI Group
South Holland District Council,http://statistics.data.gov.uk/id/local-authority/32UF,Environmental Services,Furniture and Equipment,26/03/2024,30042564,"2,074.32 ",Veolia Es UK Ltd
South Holland District Council,http://statistics.data.gov.uk/id/local-authority/32UF,Environmental Services,Furniture and Equipment,26/03/2024,30042567,521.24 ,Veolia Es UK Ltd
South Holland District Council,http://statistics.data.gov.uk/id/local-authority/32UF,Environmental Services,Furniture and Equipment,26/03/2024,30042568,220.70 ,Veolia Es UK Ltd
South Holland District Council,http://statistics.data.gov.uk/id/local-authority/32UF,Environmental Services,Professional and Contractors Fees,26/03/2024,30042353,"1,200.00 ",Weaar
South Holland District Council,http://statistics.data.gov.uk/id/local-authority/32UF,Environmental Services,Professional and Contractors Fees,26/03/2024,30042354,550.00 ,Weaar
South Holland District Council,http://statistics.data.gov.uk/id/local-authority/32UF,Environmental Services,Professional and Contractors Fees,26/03/2024,30042355,450.00 ,Weaar
South Holland District Council,http://statistics.data.gov.uk/id/local-authority/32UF,Environmental Services,Professional and Contractors Fees,26/03/2024,30042356,450.00 ,Weaar
South Holland District Council,http://statistics.data.gov.uk/id/local-authority/32UF,Environmental Services,Professional and Contractors Fees,26/03/2024,30042357,"1,600.00 ",Weaar
South Holland District Council,http://statistics.data.gov.uk/id/local-authority/32UF,Environmental Services,Professional and Contractors Fees,26/03/2024,30042358,950.00 ,Weaar
South Holland District Council,http://statistics.data.gov.uk/id/local-authority/32UF,Environmental Services,Professional and Contractors Fees,26/03/2024,30042359,"2,500.00 ",Weaar
South Holland District Council,http://statistics.data.gov.uk/id/local-authority/32UF,Environmental Services,Professional and Contractors Fees,26/03/2024,30042360,"1,200.00 ",Weaar
South Holland District Council,http://statistics.data.gov.uk/id/local-authority/32UF,Environmental Services,Professional and Contractors Fees,26/03/2024,30042361,"1,950.00 ",Weaar
South Holland District Council,http://statistics.data.gov.uk/id/local-authority/32UF,Environmental Services,Professional and Contractors Fees,26/03/2024,30042362,"1,300.00 ",Weaar
South Holland District Council,http://statistics.data.gov.uk/id/local-authority/32UF,Environmental Services,Professional and Contractors Fees,26/03/2024,30042397,650.00 ,Weaar
South Holland District Council,http://statistics.data.gov.uk/id/local-authority/32UF,Environmental Services,Professional and Contractors Fees,26/03/2024,30042398,750.00 ,Weaar
South Holland District Council,http://statistics.data.gov.uk/id/local-authority/32UF,Environmental Services,Professional and Contractors Fees,26/03/2024,30042399,450.00 ,Weaar
South Holland District Council,http://statistics.data.gov.uk/id/local-authority/32UF,Environmental Services,Professional and Contractors Fees,26/03/2024,30042906,"2,170.13 ",Lincolnshire County Council
South Holland District Council,http://statistics.data.gov.uk/id/local-authority/32UF,Finance,Banking Charges,26/03/2024,30043598,479.72 ,AllPay Limited
South Holland District Council,http://statistics.data.gov.uk/id/local-authority/32UF,Finance,Banking Charges,26/03/2024,30043605,"5,053.52 ",Pay360 Limited
South Holland District Council,http://statistics.data.gov.uk/id/local-authority/32UF,Finance,Council Tax Rebate Expenditure,26/03/2024,30043038,"-5,928,558.00 ",Department for levelling Up Housing & Communities
South Holland District Council,http://statistics.data.gov.uk/id/local-authority/32UF,Finance,Council Tax Rebate Income,26/03/2024,30043038,"5,985,750.00 ",Department for levelling Up Housing & Communities
South Holland District Council,http://statistics.data.gov.uk/id/local-authority/32UF,Finance,Insurance,26/03/2024,30042405,"7,057.00 ",Speedy Asset Services Ltd
South Holland District Council,http://statistics.data.gov.uk/id/local-authority/32UF,Finance,Professional and Contractors Fees,26/03/2024,30042501,766.24 ,Kings Armoured Security Services Ltd
South Holland District Council,http://statistics.data.gov.uk/id/local-authority/32UF,Head of ICT and Digital,Computer Hardware Maintenance,26/03/2024,30042426,539.91 ,Multidata
South Holland District Council,http://statistics.data.gov.uk/id/local-authority/32UF,Head of ICT and Digital,Computer Software Licence Costs,26/03/2024,30042388,"13,984.84 ",Specialist Computer Centres PLC
South Holland District Council,http://statistics.data.gov.uk/id/local-authority/32UF,Head of ICT and Digital,Computer Software Licence Costs,26/03/2024,30042390,"25,835.19 ",Ocella Ltd
South Holland District Council,http://statistics.data.gov.uk/id/local-authority/32UF,Head of ICT and Digital,Computer Software Licence Costs,26/03/2024,30043270,"13,106.20 ",Idox Software Limited
South Holland District Council,http://statistics.data.gov.uk/id/local-authority/32UF,Leisure & Culture Communities,Advertising - Events,26/03/2024,30042963,799.00 ,Chilli Media and Publishing Ltd
South Holland District Council,http://statistics.data.gov.uk/id/local-authority/32UF,Leisure & Culture Communities,Advertising - Events,26/03/2024,30042964,899.00 ,Chilli Media and Publishing Ltd
South Holland District Council,http://statistics.data.gov.uk/id/local-authority/32UF,Leisure & Culture Communities,Computer Hardware Maintenance,26/03/2024,30042572,"1,242.23 ",Spektrix Ltd
South Holland District Council,http://statistics.data.gov.uk/id/local-authority/32UF,Leisure & Culture Communities,Furniture and Equipment,26/03/2024,30042566,441.56 ,Veolia Es UK Ltd
South Holland District Council,http://statistics.data.gov.uk/id/local-authority/32UF,Leisure & Culture Communities,Professional and Contractors Fees,26/03/2024,30042838,"6,479.00 ",Sharpe Pritchard LLP
South Holland District Council,http://statistics.data.gov.uk/id/local-authority/32UF,Planning,Agency - Vacant Post Cover,26/03/2024,30042543,"2,520.00 ",Yimby Ltd
South Holland District Council,http://statistics.data.gov.uk/id/local-authority/32UF,Planning,Agency - Vacant Post Cover,26/03/2024,30043170,"11,825.00 ",Mark Simmonds Planning Services Limited
South Holland District Council,http://statistics.data.gov.uk/id/local-authority/32UF,Planning,Agency - Vacant Post Cover,26/03/2024,30043171,"3,225.00 ",Mark Simmonds Planning Services Limited
South Holland District Council,http://statistics.data.gov.uk/id/local-authority/32UF,Public Protection,Professional and Contractors Fees,26/03/2024,30039157,"6,525.00 ",LA Support Limited
South Holland District Council,http://statistics.data.gov.uk/id/local-authority/32UF,Public Protection,Professional and Contractors Fees,26/03/2024,30040398,"5,445.00 ",LA Support Limited
South Holland District Council,http://statistics.data.gov.uk/id/local-authority/32UF,Public Protection,Professional and Contractors Fees,26/03/2024,30041504,"1,100.00 ",LA Support Limited
South Holland District Council,http://statistics.data.gov.uk/id/local-authority/32UF,AD Housing,Grants and Contributions to Outside Bodies - No Service Received,28/03/2024,30043193,"5,000.00 ",Citizens Advice South Lincolnshire
South Holland District Council,http://statistics.data.gov.uk/id/local-authority/32UF,AD Housing,Grants and Contributions to Outside Bodies - No Service Received,28/03/2024,30043513,"13,759.46 ",Princebuild Ltd
South Holland District Council,http://statistics.data.gov.uk/id/local-authority/32UF,AD Housing,Professional and Contractors Fees,28/03/2024,30043449,"49,009.00 ",Lincolnshire County Council
South Holland District Council,http://statistics.data.gov.uk/id/local-authority/32UF,AD Housing HRA,Agency Staff,28/03/2024,30043493,"1,295.00 ",�Personal Information Redacted�
South Holland District Council,http://statistics.data.gov.uk/id/local-authority/32UF,AD Housing HRA,Legal Fees,28/03/2024,30042396,700.00 ,Capsticks Solicitors LLP
South Holland District Council,http://statistics.data.gov.uk/id/local-authority/32UF,AD Housing HRA,Legal Fees,28/03/2024,30042438,"1,275.00 ",Capsticks Solicitors LLP
South Holland District Council,http://statistics.data.gov.uk/id/local-authority/32UF,AD Housing HRA,Legal Fees,28/03/2024,30042440,704.00 ,Capsticks Solicitors LLP
South Holland District Council,http://statistics.data.gov.uk/id/local-authority/32UF,AD Housing HRA,Roof Repairs,28/03/2024,30043244,630.00 ,Kev Forman Roofing Ltd
South Holland District Council,http://statistics.data.gov.uk/id/local-authority/32UF,AD Housing HRA,Roof Repairs,28/03/2024,30043293,835.00 ,Kev Forman Roofing Ltd
South Holland District Council,http://statistics.data.gov.uk/id/local-authority/32UF,AD Housing HRA,Roof Repairs,28/03/2024,30043294,630.00 ,Kev Forman Roofing Ltd
South Holland District Council,http://statistics.data.gov.uk/id/local-authority/32UF,AD Housing HRA,Roof Repairs,28/03/2024,30043378,930.00 ,Kev Forman Roofing Ltd
South Holland District Council,http://statistics.data.gov.uk/id/local-authority/32UF,AD Housing HRA,Sewerage Treatment Works,28/03/2024,30043390,"27,354.08 ",C G Godfrey Ltd
South Holland District Council,http://statistics.data.gov.uk/id/local-authority/32UF,AD Strategic Growth and Development,Professional and Contractors Fees,28/03/2024,30042892,"2,103.85 ",University of Lincoln Transported
South Holland District Council,http://statistics.data.gov.uk/id/local-authority/32UF,AD Strategic Growth and Development,Professional and Contractors Fees,28/03/2024,30043381,"434,579.50 ",Alliance Leisure Services Limited
South Holland District Council,http://statistics.data.gov.uk/id/local-authority/32UF,AD Strategic Growth and Development,Professional Fees,28/03/2024,30042672,"3,600.00 ",Max Associates Holdings Ltd
South Holland District Council,http://statistics.data.gov.uk/id/local-authority/32UF,AD Strategic Growth and Development,Professional Fees,28/03/2024,30042884,"1,188.00 ",Capsticks Solicitors LLP
South Holland District Council,http://statistics.data.gov.uk/id/local-authority/32UF,AD Strategic Growth and Development,Professional Fees,28/03/2024,30043425,"4,922.00 ",Capsticks Solicitors LLP
South Holland District Council,http://statistics.data.gov.uk/id/local-authority/32UF,AD Strategic Growth and Development,Professional Fees,28/03/2024,30043443,"5,204.84 ",Howes Percival
South Holland District Council,http://statistics.data.gov.uk/id/local-authority/32UF,AD Wellbeing and Community Leadership,Grants and Contributions to Outside Bodies - No Service Received,28/03/2024,30043193,"5,000.00 ",Citizens Advice South Lincolnshire
South Holland District Council,http://statistics.data.gov.uk/id/local-authority/32UF,AD Wellbeing and Community Leadership,Grants and Contributions to Outside Bodies - No Service Received,28/03/2024,30043402,"1,992.00 ",Property Panda Lettings Ltd
South Holland District Council,http://statistics.data.gov.uk/id/local-authority/32UF,AD Wellbeing and Community Leadership,Grants and Contributions to Outside Bodies - No Service Received,28/03/2024,30043513,"27,518.92 ",Princebuild Ltd
South Holland District Council,http://statistics.data.gov.uk/id/local-authority/32UF,AD Wellbeing and Community Leadership,Professional and Contractors Fees,28/03/2024,30043449,"98,018.00 ",Lincolnshire County Council
South Holland District Council,http://statistics.data.gov.uk/id/local-authority/32UF,Asset & Property,Furniture and Equipment,28/03/2024,30042613,"9,477.00 ",e.on Energy Solutions Ltd (Highway Lighting)
South Holland District Council,http://statistics.data.gov.uk/id/local-authority/32UF,Asset & Property,Furniture and Equipment,28/03/2024,30042711,775.00 ,e.on Energy Solutions Ltd (Highway Lighting)
South Holland District Council,http://statistics.data.gov.uk/id/local-authority/32UF,Asset & Property,Professional and Contractors Fees,28/03/2024,30043381,"217,289.75 ",Alliance Leisure Services Limited
South Holland District Council,http://statistics.data.gov.uk/id/local-authority/32UF,Asset & Property,Professional Fees,28/03/2024,30042672,"1,800.00 ",Max Associates Holdings Ltd
South Holland District Council,http://statistics.data.gov.uk/id/local-authority/32UF,Asset & Property,"Purchase of Plant, Machinery and Equipment",28/03/2024,30042612,"1,350.00 ",e.on Energy Solutions Ltd (Highway Lighting)
South Holland District Council,http://statistics.data.gov.uk/id/local-authority/32UF,Asset & Property,"Purchase of Plant, Machinery and Equipment",28/03/2024,30042622,"3,375.00 ",e.on Energy Solutions Ltd (Highway Lighting)
South Holland District Council,http://statistics.data.gov.uk/id/local-authority/32UF,Asset & Property,"Purchase of Plant, Machinery and Equipment",28/03/2024,30042623,"1,350.00 ",e.on Energy Solutions Ltd (Highway Lighting)
South Holland District Council,http://statistics.data.gov.uk/id/local-authority/32UF,Asset & Property,Works to Buildings (Main Contractor),28/03/2024,30043517,"23,750.00 ",Warics Ltd
South Holland District Council,http://statistics.data.gov.uk/id/local-authority/32UF,Capital - Strategic Finance & Compliance,"Purchase of Plant, Machinery and Equipment",28/03/2024,30042612,"1,350.00 ",e.on Energy Solutions Ltd (Highway Lighting)
South Holland District Council,http://statistics.data.gov.uk/id/local-authority/32UF,Capital - Strategic Finance & Compliance,"Purchase of Plant, Machinery and Equipment",28/03/2024,30042622,"3,375.00 ",e.on Energy Solutions Ltd (Highway Lighting)
South Holland District Council,http://statistics.data.gov.uk/id/local-authority/32UF,Capital - Strategic Finance & Compliance,"Purchase of Plant, Machinery and Equipment",28/03/2024,30042623,"1,350.00 ",e.on Energy Solutions Ltd (Highway Lighting)
South Holland District Council,http://statistics.data.gov.uk/id/local-authority/32UF,Capital - Strategic Finance & Compliance,Works to Buildings (Main Contractor),28/03/2024,30043517,"23,750.00 ",Warics Ltd
South Holland District Council,http://statistics.data.gov.uk/id/local-authority/32UF,Democratic Services - Democratic,Other Miscellaneous Expenses,28/03/2024,30043064,600.00 ,Spalding Armed Forces Breakfast Club
South Holland District Council,http://statistics.data.gov.uk/id/local-authority/32UF,Democratic Services - Democratic,Other Miscellaneous Expenses,28/03/2024,30043065,750.00 ,Donington Parish Council Hub
South Holland District Council,http://statistics.data.gov.uk/id/local-authority/32UF,Democratic Services - Democratic,Other Miscellaneous Expenses,28/03/2024,30043072,600.00 ,Spalding Armed Forces Breakfast Club
South Holland District Council,http://statistics.data.gov.uk/id/local-authority/32UF,Democratic Services - Democratic,Other Miscellaneous Expenses,28/03/2024,30043284,"4,000.00 ",Long Sutton Parish Council
South Holland District Council,http://statistics.data.gov.uk/id/local-authority/32UF,Economic Development,Professional and Contractors Fees,28/03/2024,30043354,"1,670.79 ",SkillsReach Ltd
South Holland District Council,http://statistics.data.gov.uk/id/local-authority/32UF,Economic Development,Professional and Contractors Fees,28/03/2024,30043474,"1,033.70 ",PKMG Ltd
South Holland District Council,http://statistics.data.gov.uk/id/local-authority/32UF,Environmental Services,Agency Staff,28/03/2024,30043239,"4,465.91 ",Integrity Plus Ltd
South Holland District Council,http://statistics.data.gov.uk/id/local-authority/32UF,Environmental Services,Agency Staff,28/03/2024,30043394,"5,128.75 ",The Best Connection Group Ltd
South Holland District Council,http://statistics.data.gov.uk/id/local-authority/32UF,Environmental Services,Agency Staff,28/03/2024,30043395,"2,163.32 ",The Best Connection Group Ltd
South Holland District Council,http://statistics.data.gov.uk/id/local-authority/32UF,Environmental Services,Agency Staff,28/03/2024,30043421,"5,901.13 ",Quality Service Recruitment Ltd
South Holland District Council,http://statistics.data.gov.uk/id/local-authority/32UF,Environmental Services,Grounds Maintenance Contract (External),28/03/2024,30043279,"1,200.00 ",Greenscape Tree Safe Ltd
South Holland District Council,http://statistics.data.gov.uk/id/local-authority/32UF,Environmental Services,Grounds Maintenance Contract (External),28/03/2024,30043280,850.00 ,Greenscape Tree Safe Ltd
South Holland District Council,http://statistics.data.gov.uk/id/local-authority/32UF,Environmental Services,Materials and Consumables,28/03/2024,30042535,"18,206.78 ",Berry BPI Refuse
South Holland District Council,http://statistics.data.gov.uk/id/local-authority/32UF,Finance,Non-Ringfenced Government Grants - S31 Grant,28/03/2024,30043344,"1,026,247.00 ",Department for levelling Up Housing & Communities
South Holland District Council,http://statistics.data.gov.uk/id/local-authority/32UF,Finance,Other Miscellaneous Expenses,28/03/2024,30043528,"30,000.00 ",Public Sector Partnership Services Ltd
South Holland District Council,http://statistics.data.gov.uk/id/local-authority/32UF,Finance,PSPS Non-Base Contract Costs,28/03/2024,30043529,"16,477.45 ",Public Sector Partnership Services Ltd
South Holland District Council,http://statistics.data.gov.uk/id/local-authority/32UF,Finance,PSPS Non-Base Contract Costs,28/03/2024,30043530,"16,762.00 ",Public Sector Partnership Services Ltd
South Holland District Council,http://statistics.data.gov.uk/id/local-authority/32UF,Head of ICT and Digital,Computer Hardware Purchase,28/03/2024,30042642,"8,100.00 ",Dell Corporation Ltd
South Holland District Council,http://statistics.data.gov.uk/id/local-authority/32UF,Head of Revenues and Benefits,Professional and Contractors Fees,28/03/2024,30042675,"5,136.08 ",Datatank LTD
South Holland District Council,http://statistics.data.gov.uk/id/local-authority/32UF,Planning,Professional and Contractors Fees,28/03/2024,30042549,"4,200.00 ",CP Viability Ltd
